Cogmind - Beta 10.2 @@@ ROGUE MODE // 2021.02.08 @ 22:00:36 Player: KudzuControl Result: Destroyed by as-21372 with Assembled Heavy Rifle Performance ------------- Evolutions (0) 0 Regions Visited (2) 400 Robots Destroyed (13) 65 Value Destroyed (234) 234 Prototype IDs (0) 0 Alien Tech Used (0) 0 Bonus (0) 0 TOTAL SCORE: 699 Bonus ------- None Cogmind --------- Core Integrity 0/250 Matter 300/300 Energy 63/100 System Corruption 0% Temperature Cool (138) Movement Treading (160) Location -10/Mines Parts ------- > --- POWER (1) -------- (None) > --- PROPULSION (2) --- Light Treads > --- UTILITY (2) ------ Large Storage Unit Hacking Suite > --- WEAPON (2) ------- EM Shotgun > --- INVENTORY (10) --- Light Ion Engine Light Treads Light Treads Light Treads Improved Terrain Scanner Seismic Analyzer Weapon Shielding Light Armor Plating Light Assault Rifle Light Cannon Peak State ------------ > --- POWER ------------ Improved Ion Engine > --- PROPULSION ------- Light Treads Light Treads > --- UTILITY ---------- Large Storage Unit Hacking Suite > --- WEAPON ----------- EM Shotgun Datajack > --- INVENTORY -------- Ion Engine Light Ion Engine Improved Terrain Scanner Seismic Analyzer Weapon Shielding Assault Rifle Light Assault Rifle Light Assault Rifle Light Cannon [Rating: 12] Favorites ----------- Power Ion Engine Engine Ion Engine Propulsion Wheel Treads Light Treads Wheel Wheel Utility Hacking Suite Device Improved Terrain Scanner Storage Large Storage Unit Processor Seismic Analyzer Hackware Hacking Suite Weapon EM Shotgun Energy Gun EM Shotgun Ballistic Gun Light Assault Rifle Special Melee Weapon Datajack Build | -11 -10 -10 ------- Run | Scr Mat Min Slots Evolved . | . . . Power . | . . . Propulsion . | . . . Utility . | . . . Weapon . | . . . Parts Attached 20 | 8 7 5 Power 3 | 1 1 1 Engine 3 | 1 1 1 Core . | . . . Reactor . | . . . Propulsion 5 | 2 . 3 Treads 3 | . . 3 Leg . | . . . Wheel 2 | 2 . . Hover . | . . . Flight . | . . . Utility 5 | 3 2 . Device 1 | 1 . . Storage 2 | 1 1 . Processor 1 | 1 . . Hackware 1 | . 1 . Protection . | . . . Artifact . | . . . Weapon 7 | 2 4 1 Energy Gun 3 | 2 1 . Energy Cannon . | . . . Ballistic Gun 2 | . 1 1 Ballistic Cannon . | . . . Launcher . | . . . Special Weapon . | . . . Impact Weapon . | . . . Slashing Weapon . | . . . Piercing Weapon . | . . . Special Melee Weapon 2 | . 2 . Unidentified Prototypes . | . . . Parts Lost 5 | . 1 4 Power 1 | . . 1 Propulsion 1 | . . 1 Utility . | . . . Weapon 3 | . 1 2 Highest Loss Streak 3 | . 1 3 Average Slot Usage (%) 98 | . 98 98 Engine 13 | . 14 13 Treads 10 | . . 23 Wheel 17 | . 28 3 Device 1 | . 1 . Storage 14 | . 14 14 Hackware 12 | . 12 14 Energy Gun 13 | . 12 14 Ballistic Gun 6 | . 3 9 Special Melee Weapon 8 | . 10 5 Naked Turns . | . . . Heaviest Build 27 | 13 24 27 Greatest Support 40 | 26 26 40 Greatest Overweight (x) 1 | 1 . . Average Overweight (x) . | . . . Largest Inventory Capacity 10 | 6 10 10 Average Capacity 8 | 5 8 10 Most Carried 10 | 6 10 10 Average Carried 7 | 3 7 9 Final Capacity 10 | 6 10 10 Final Carried 10 | 5 10 10 Class Distribution -------------------- 100% | Mutant Dominant Class ---------------- Mutant | -10/Materials Mutant | -10/Mines Resources | -11 -10 -10 ----------- Run | Scr Mat Min Matter Collected 364 | 273 33 58 Remotely . | . . . Salvage Created 384 | 71 233 80 Parts 28 | 6 15 7 Haulers Intercepted . | . . . Recyclers Shooed 2 | 1 1 . Parts Field Recycled . | . . . Retrieved Matter . | . . . Parts Self-Destructed . | . . . Prevented . | . . . Kills | -11 -10 -10 ------- Run | Scr Mat Min Combat Hostiles Destroyed 9 | . 4 5 Guns 9 | . 4 5 Classes Destroyed 6 | 1 3 2 Worker 1 | . 1 . Tunneler 4 | 3 1 . Operator 1 | . 1 . Swarmer 3 | . . 3 Grunt 4 | . 4 . Assembled 2 | . . 2 Best Kill Streak 4 | 3 4 3 Combat Bots Only 3 | . 2 3 Max Kills in Single Turn 1 | 1 1 1 Gunslinging . | . . . Exploded . | . . . Melee . | . . . Uniques/NPCs Destroyed . | . . . Combat | -11 -10 -10 -------- Run | Scr Mat Min Damage Taken 1003 | . 334 669 Core 258 | . 102 156 Absorbed by Shields . | . . . Core Remaining (%) 100 | 100 . . Volleys Fired 49 | 6 24 19 Largest 2 | 2 2 2 Hottest 80 | 80 80 65 Shots Fired 76 | 12 30 34 Gun 76 | 12 30 34 Cannon . | . . . Launcher . | . . . Special . | . . . Kinetic 33 | . 18 15 Thermal 10 | 6 4 . Explosive . | . . . Electromagnetic 33 | 6 8 19 Robot Hit Streak 10 | 3 7 10 Robot Miss Streak 7 | 3 4 7 Penetration Max . | . . . Secondary Targets 1 | . . 1 Max Gunslinging Chain 1 | . . 1 Shots Hit Robots 56 | 6 26 24 Core Hits 27 | 3 11 13 Critical Hits . | . . . Critical Kills . | . . . Critical Parts Destroyed . | . . . Melee Attacks 12 | . 12 . Impact . | . . . Slashing . | . . . Piercing . | . . . Sneak Attacks 5 | . 5 . Combat Hostiles . | . . . Follow-up Attacks . | . . . Damage Inflicted 707 | 90 357 260 Guns 613 | 90 263 260 Cannons . | . . . Explosions 94 | . 94 . Melee . | . . . Ramming . | . . . Kinetic 243 | . 186 57 Thermal 32 | 21 11 . Explosive 94 | . 94 . Electromagnetic 338 | 69 66 203 Impact . | . . . Slashing . | . . . Piercing . | . . . Highest Corruption . | . . . Average Corruption . | . . . Corruption Purged . | . . . Overload Shots . | . . . Overflow Damage . | . . . Projectiles . | . . . Explosions . | . . . Melee . | . . . Knockbacks . | . . . Impact . | . . . Kinetic . | . . . Secondary . | . . . Self-Inflicted Damage . | . . . Shots . | . . . Rammed . | . . . Targets Rammed . | . . . Kicked . | . . . Crushed . | . . . Highest Temperature 152 | 54 74 152 Average Temperature 41 | 23 25 55 Received Heat Transfer 446 | . 186 260 Siege Activations . | . . . Robots Corrupted . | . . . Combat Hostiles . | . . . Parts Fried . | . . . Impact Corruptions . | . . . Robots Melted . | . . . Combat Hostiles . | . . . Parts Melted . | . . . Heat Transferred 75 | 50 25 . Parts Sabotaged . | . . . Parts Stolen . | . . . Parts Stripped . | . . . Power Chain Reactions . | . . . Missiles Intercepted . | . . . Alert | -11 -10 -10 ------- Run | Scr Mat Min Peak Influence 183 | 15 183 160 Initial 70 | . 9 70 Average 96 | 6 100 128 Maximum Alert Level . | . . . Low Security (%) 100 | 100 100 100 Level 1 . | . . . Level 2 . | . . . Level 3 . | . . . Level 4 . | . . . Level 5 . | . . . High Security . | . . . Max Security . | . . . Squads Dispatched 2 | . 2 . Investigation 1 | . 1 . Extermination . | . . . Reinforcement 1 | . 1 . Assault . | . . . Garrison . | . . . Intercept . | . . . Construction Impeded . | . . . Haulers Reinforced . | . . . Stealth | -11 -10 -10 --------- Run | Scr Mat Min Distress Signals 1 | . 1 . Communications Jammed . | . . . Distress Signals . | . . . Times Spotted 27 | . 8 19 Peak Tracking Total 16 | . 3 16 Tactical Retreats 3 | . 1 2 Traps | -11 -10 -10 ------- Run | Scr Mat Min Traps Triggered . | . . . Indirectly . | . . . Trap Hack Attempts . | . . . Triggered . | . . . Disarmed . | . . . Reprogrammed . | . . . Reused . | . . . Traps Extracted . | . . . Installed . | . . . Triggered . | . . . Machines | -11 -10 -10 ---------- Run | Scr Mat Min Machines Disabled 1 | . 1 . Max in Single Turn 1 | . 1 . Machines Sabotaged . | . . . Garrisons Compromised . | . . . Overloaded Fab Kills . | . . . Fab Network Shutdowns . | . . . Hacking | -11 -10 -10 --------- Run | Scr Mat Min Machines Accessed 4 | . 4 . Terminals 3 | . 3 . Fabricators . | . . . Repair Stations . | . . . Recycling Units 1 | . 1 . Scanalyzers . | . . . Garrison Access . | . . . Total Hacks 17 | . 17 . Successful 11 | . 11 . Failed 6 | . 6 . Catastrophic . | . . . Database Lockouts . | . . . Manual . | . . . Terminals 12 | . 12 . Fabricators . | . . . Repair Stations . | . . . Recycling Units 5 | . 5 . Scanalyzers . | . . . Garrison Access . | . . . Terminal Hacks 6 | . 6 . Alert Level 1 | . 1 . Unreport Threat 1 | . 1 . Locate Traps 1 | . 1 . Registered Components 1 | . 1 . Zone Layout 2 | . 2 . Fabricator Hacks . | . . . Repair Station Hacks . | . . . Recycling Unit Hacks 5 | . 5 . Process 2 | . 2 . Report Inventory 1 | . 1 . Retrieve Matter 2 | . 2 . Scanalyzer . | . . . Garrison Access Hacks . | . . . Unauthorized Hacks . | . . . Terminals . | . . . Fabricators . | . . . Repair Stations . | . . . Recycling Units . | . . . Scanalyzers . | . . . Garrison Access . | . . . Data Cores Recovered . | . . . Used . | . . . Hacking Detections 4 | . 4 . Full Trace Events 3 | . 3 . Feedback Events . | . . . Feedback Blocked . | . . . Robot Schematics Acquired . | . . . Robots Built . | . . . Matter . | . . . Time . | . . . Total Robot Build Rating . | . . . Part Schematics Acquired . | . . . Parts Built . | . . . Matter . | . . . Time . | . . . Total Part Build Rating . | . . . Parts Repaired . | . . . Time . | . . . Parts Recycled . | . . . Recycled Matter 193 | . 193 . Retrieved Matter 193 | . 193 . Retrieved Components . | . . . Parts Scanalyzed . | . . . Part Schematics Acquired . | . . . Parts Damaged . | . . . Bothacking | -11 -10 -10 ------------ Run | Scr Mat Min Used RIF Installer . | . . . Robots Hacked 4 | . 4 . Non-combat 3 | . 3 . Combat 1 | . 1 . Robot Hacks Applied 5 | . 5 . parse_system 3 | . 3 . no_distress 1 | . 1 . find_recycling 1 | . 1 . Relay Couplers Released . | . . . Robots Rewired . | . . . Allies Hacked . | . . . Hacks Repelled . | . . . Allies | -11 -10 -10 -------- Run | Scr Mat Min Total Allies . | . . . Largest Group . | . . . Highest-Rated Group . | . . . Highest-Rated Ally . | . . . Total Orders . | . . . Ally Attacks . | . . . Total Damage . | . . . Kills . | . . . Allies Corrupted . | . . . Allies Melted . | . . . Intel | -11 -10 -10 ------- Run | Scr Mat Min Robot Analysis Total . | . . . Derelict Logs Recovered . | . . . Drone Launches . | . . . Drone Recoveries . | . . . Exploration | -11 -10 -10 ------------- Run | Scr Mat Min Turns Passed 757 | 113 359 285 Spaces Moved 507 | 74 283 150 Core 7 | 7 . . Treads 116 | . . 116 Legs . | . . . Wheels 384 | 67 283 34 Hover . | . . . Flight . | . . . Fastest Speed 50 | 50 90 90 Average Speed 105 | 88 90 144 Slowest Speed 160 | 100 90 160 Overloaded Moves . | . . . Propulsion Burnouts . | . . . Robots Hopped . | . . . Cave-ins Triggered . | . . . Exploration Rate (%) 28 | 5 45 35 Regions Visited 2 Branch Regions 1 Pre-discovered Areas . | . . . Known Exits Taken . | . . . Unknown Exits Taken 2 | 1 1 . Scrap Searched 1 | . . 1 Spaces Dug . | . . . Terrain Destroyed 13 | . 13 . Melee . | . . . Projectile . | . . . AOE 13 | . 13 . Terrain Rammed . | . . . Walls Destroyed . | . . . Machines Disabled . | . . . Actions | -11 -10 -10 --------- Run | Scr Mat Min Total 640 | 109 343 188 Wait 24 | 9 10 5 Move 505 | 73 282 150 Hop . | . . . Pick Up 24 | 13 6 5 Fast Attach 1 | . 1 . Attach 9 | 7 1 1 Detach . | . . . Swap 10 | 1 5 4 Drop 6 | . 2 4 Fire 49 | 6 24 19 Melee 12 | . 12 . Ram . | . . . Kick . | . . . Crush . | . . . Escape Stasis . | . . . Rewire . | . . . Trap . | . . . Miscellaneous . | . . . Route ------- -11/Scrapyard -10/Materials (discovered 2 exits: [*Mat] / [*Min]) -10/Mines History --------- Turn | Location | Event 2 | -11/Scrapyard | Met Revision 17 9 | -11/Scrapyard | Discovered new exit (range 16) 114 | -11/Scrapyard | Entered Materials 127 | -10/Materials | Discovered new exit (range 13) 305 | -10/Materials | Discovered new exit (range 11) 316 | -10/Materials | Build established: Mutant 473 | -10/Materials | Entered Mines 501 | -10/Mines | Joined a pair of Derelicts in attacking an 0b10 outpost 696 | -10/Mines | Assembled infested the area 712 | -10/Mines | Core integrity fell below 50% 742 | -10/Mines | Core integrity fell below 20% 758 | -10/Mines | Destroyed by as-21372 with Assembled Heavy Rifle Last Messages --------------- 00603_ R-06 Scavenger collects Lgt. Assault Rifle. 00619_ Searching scrap... 00619_ Found Lgt. Treads. 00619_ Found Sml. Matter Pod. 00619_ Found Seismic Analyzer. 00619_ Found 24 Matter. 00624_ Acquired Lgt. Treads. 00628_ Acquired 10 matter. 00644_ K-01 Serf collects debris. 00696_ ALERT: Infestation in the mines, dispatching Demolisher response squad. 00699_ K-01 Serf destroyed. 00712_ as-76316 destroyed. 00730_ U-05 Engineer destroyed. 00730_ as-63869 destroyed. 00738_ Lgt. Treads destroyed. 00741_ as-94271 destroyed. 00747_ Imp. Ion Engine destroyed. 00753_ Lgt. Assault Rifle destroyed. 00757_ Destroyed Asb. F-torch. Map ----- +----------------------------------------------------+ | | | | | | | | | | | | | ??????????????????????????????????????????????? | | ????????????????????????????#######???????????? | | ???????????????????????????## ##??????????? | | ??????#######??????######### ##?????????? | | ?????## ####?## #?????????? | | ?????# [ ### = * #????????? | | ????## ! ! #????????? | | ????# %= ## ## ##????????? | | % $ ### #######?####?????????? | | ?????## ! #####????????????????????? | | #??????????## ##????????????????????????? | | ?????????????## #######???????????????????? | | ??????????????# % %*#???????????????????? | | ??????????????# ####!%#######?????????????? | | ??????????????## ##??#!! #?????????????? | | ???????????????#####???# #?????????????? | | ???????????????????????##a#### #?????????????? | | ????????????????????????#a#??# #?????????????? | | ????????????????????????#%#??# #?????????????? | | ????????????????????????#@#??# #?????????????? | | ????????????????????????#%#??# #?????????????? | | ????????????????????????#!#??# #?????????????? | | ????????????????????????#a#### ######????????? | | ???????????????????????## ## # ##???????? | | ???????????????????????# #???????? | | ???????????????????????# #???????? | | ????????????????????#### ###???????? | | ????????????????????# % ##?????????? | | ????????????????????# ### ###%=#??????????? | | ????????????????????#???## ##?#[=#??????????? | | ?????????????????????????#####??#[ #??????????? | | ????????????????????????????????# ######??##?? | | ????????????????????????????????# #?? | | ????????????????????????????????# ##### #?? | | ????????????????????????????????# #????? #?? | | ????????????????????????######??# ##???? #?? | | ???????????????????????##"[!"##?# ##?? #?? | | ???????????????????????#""[!""#?## #?? #?? | | ???????????????????????#%!*! %#?## ### #?? | | ???????????????????????## [! #### #?? | | ???????????????????????###//## #??? | | ???????????????????????# ##??? | | ??????????????????????## ###???? | | ??????????????????????# ##?????? | +----------------------------------------------------+ Best States ------------- Heat Dissipation 25 Energy Generation 12 Energy Capacity 265 Matter Stores 300 Matter Capacity 300 Sight Range 16 Terrain Scan Range 16 Terrain Scan Density 60 Evasion (%) 42 Recoil Reduction 2 Offensive Hacking 10 Item Schematics ----------------- None Robot Schematics ------------------ None Fabricated ------------ Nothing Alien Tech Used ----------------- None Achievements -------------- None Challenges ------------ None Game ------ Seed AssaultScanRipper Manual? 0 Play Time 00:16:14 Cumulative 16.0 hours Start 2021.02.08 @ 21:46:33 End 2021.02.08 @ 22:00:36 Sessions 1 Manual Loads 0 Difficulty Rogue Special Mode None Game No. 14 Rogue 14 Adventurer 0 Explorer 0 Win Type - Total 0 Types 0/0/0/0/0/0/0/0/0 Lore% 18 Gallery% 20 Achievement% 16 Wizard Run 0 Options --------- ASCII 0 Keyboard 0 Movement Mouse Keybinds 0 Fullscreen 2 Font 18/SmallcapsGlow Map View 76x50 Tactical HUD 1 Map Filters NONE Filters NONE Steam 1 RUN: 1aadcced-a0a0-4546-a2e8-73581d84aa9b